[Event "*** Titled Tuesday Blitz"]
[Site "Chess.com"]
[Date "2020.12.01"]
[Round "3"]
[White "Aleksey_Sorokin"]
[Black "stoleriu"]
[Result "0-1"]
[WhiteElo "2816"]
[BlackElo "2560"]
[TimeControl "180+1"]
[EndTime "10:27:08 PST"]
[Termination "stoleriu won by resignation"]

1. d4 {[%clk 0:03:00.9]} 1... e6 {[%clk 0:03:00.5]} 2. c4 {[%clk 0:03:00.3]}
2... Nf6 {[%clk 0:02:59.4]} 3. Nf3 {[%clk 0:02:58.9]} 3... Bb4+ {[%clk
0:02:59.8]} 4. Nbd2 {[%clk 0:02:58.2]} 4... b6 {[%clk 0:02:57.3]} 5. a3 {[%clk
0:02:59.1]} 5... Bxd2+ {[%clk 0:02:56.5]} 6. Qxd2 {[%clk 0:03:00]} 6... a5
{[%clk 0:02:55.8]} 7. b3 {[%clk 0:02:58]} 7... O-O {[%clk 0:02:54.6]} 8. e3
{[%clk 0:02:58.1]} 8... Bb7 {[%clk 0:02:54.9]} 9. Be2 {[%clk 0:02:55.8]} 9... d6
{[%clk 0:02:55.4]} 10. O-O {[%clk 0:02:55.7]} 10... Nbd7 {[%clk 0:02:56.3]} 11.
Bb2 {[%clk 0:02:55.8]} 11... Qe7 {[%clk 0:02:56.1]} 12. Rfd1 {[%clk 0:02:55.1]}
12... Ne4 {[%clk 0:02:51.8]} 13. Qc2 {[%clk 0:02:54.8]} 13... f5 {[%clk
0:02:52.7]} 14. d5 {[%clk 0:02:54.9]} 14... e5 {[%clk 0:02:44.6]} 15. Nd2 {[%clk
0:02:54.5]} 15... Nxd2 {[%clk 0:02:44.3]} 16. Rxd2 {[%clk 0:02:54.6]} 16... Nc5
{[%clk 0:02:44.5]} 17. Rdd1 {[%clk 0:02:48.3]} 17... f4 {[%clk 0:02:38]} 18. b4
{[%clk 0:02:46.5]} 18... Nd7 {[%clk 0:02:23]} 19. Bg4 {[%clk 0:02:44.7]} 19...
Kh8 {[%clk 0:02:17.1]} 20. Re1 {[%clk 0:02:34.9]} 20... Bc8 {[%clk 0:02:06.2]}
21. Be6 {[%clk 0:02:24.7]} 21... f3 {[%clk 0:02:01.9]} 22. gxf3 {[%clk
0:02:03.4]} 22... Rxf3 {[%clk 0:02:02.8]} 23. Qe2 {[%clk 0:01:58.8]} 23... Rf6
{[%clk 0:01:55.8]} 24. f4 {[%clk 0:01:55.4]} 24... Rxe6 {[%clk 0:01:26.3]} 25.
dxe6 {[%clk 0:01:54.6]} 25... Qxe6 {[%clk 0:01:27.2]} 26. Qg2 {[%clk 0:01:42]}
26... Rb8 {[%clk 0:01:24.5]} 27. Rac1 {[%clk 0:01:31.1]} 27... Bb7 {[%clk
0:01:23.2]} 28. e4 {[%clk 0:01:31.1]} 28... Rf8 {[%clk 0:01:17]} 29. f5 {[%clk
0:01:30.4]} 29... Qh6 {[%clk 0:01:16.5]} 30. c5 {[%clk 0:01:26.5]} 30... bxc5
{[%clk 0:01:13.8]} 31. bxc5 {[%clk 0:01:24.6]} 31... Nxc5 {[%clk 0:01:14.7]} 32.
Rxc5 {[%clk 0:01:22.4]} 32... dxc5 {[%clk 0:01:15.6]} 33. Bxe5 {[%clk
0:01:22.8]} 33... Re8 {[%clk 0:00:35]} 34. Qg3 {[%clk 0:01:12.6]} 34... c4
{[%clk 0:00:27.8]} 35. Re3 {[%clk 0:01:00.8]} 35... Rxe5 {[%clk 0:00:26.7]} 0-1

[Event "*** Titled Tuesday Blitz"]
[Site "Chess.com"]
[Date "2020.12.01"]
[Round "3"]
[White "ZenBull"]
[Black "ChainsOfFantasia"]
[Result "0-1"]
[WhiteElo "2164"]
[BlackElo "2477"]
[TimeControl "180+1"]
[EndTime "10:27:09 PST"]
[Termination "ChainsOfFantasia won by checkmate"]

1. Nf3 {[%clk 0:03:00.9]} 1... Nf6 {[%clk 0:02:59.9]} 2. c4 {[%clk 0:03:00.3]}
2... e6 {[%clk 0:02:59.8]} 3. g3 {[%clk 0:03:00.1]} 3... d5 {[%clk 0:03:00.7]}
4. d4 {[%clk 0:02:59.1]} 4... Be7 {[%clk 0:03:00.7]} 5. Bg2 {[%clk 0:02:59]}
5... O-O {[%clk 0:03:01.1]} 6. O-O {[%clk 0:02:59.6]} 6... dxc4 {[%clk
0:03:01.6]} 7. Qc2 {[%clk 0:02:59.5]} 7... a6 {[%clk 0:03:01.9]} 8. a4 {[%clk
0:02:59.8]} 8... c5 {[%clk 0:03:01.8]} 9. dxc5 {[%clk 0:02:54.9]} 9... Bxc5
{[%clk 0:03:02.7]} 10. Nbd2 {[%clk 0:02:52.4]} 10... b5 {[%clk 0:03:02.7]} 11.
axb5 {[%clk 0:02:51.7]} 11... Bb7 {[%clk 0:03:03.2]} 12. bxa6 {[%clk 0:02:49.6]}
12... Nxa6 {[%clk 0:03:04.1]} 13. Qxc4 {[%clk 0:02:43.9]} 13... Qb6 {[%clk
0:02:43.1]} 14. b4 {[%clk 0:02:22.6]} 14... Nxb4 {[%clk 0:02:40.2]} 15. Rxa8
{[%clk 0:02:22.6]} 15... Rxa8 {[%clk 0:02:38.9]} 16. Bb2 {[%clk 0:02:21.1]}
16... Ba6 {[%clk 0:02:15.9]} 17. Qh4 {[%clk 0:02:10]} 17... Bxe2 {[%clk
0:02:15.3]} 18. Bxf6 {[%clk 0:02:00.3]} 18... gxf6 {[%clk 0:02:09.7]} 19. Rb1
{[%clk 0:01:37.7]} 19... Bxf2+ {[%clk 0:02:09.1]} 20. Kh1 {[%clk 0:01:37.5]}
20... Rb8 {[%clk 0:01:52.4]} 21. Qxf6 {[%clk 0:01:34.7]} 21... Qc5 {[%clk
0:01:42.4]} 22. Ne4 {[%clk 0:01:27.3]} 22... Qc2 {[%clk 0:01:36.6]} 23. Qg5+
{[%clk 0:01:12.3]} 23... Kf8 {[%clk 0:01:26.8]} 24. Qh6+ {[%clk 0:01:08.6]}
24... Ke8 {[%clk 0:01:15.9]} 25. Nf6+ {[%clk 0:00:49.4]} 25... Ke7 {[%clk
0:01:12.1]} 26. Ra1 {[%clk 0:00:49.3]} 26... Na2 {[%clk 0:00:56.1]} 27. h4
{[%clk 0:00:22.9]} 27... Rb1+ {[%clk 0:00:44.7]} 28. Rxb1 {[%clk 0:00:22.1]}
28... Qxb1+ {[%clk 0:00:45.6]} 29. Kh2 {[%clk 0:00:22.3]} 29... Bxf3 {[%clk
0:00:46.2]} 30. Bxf3 {[%clk 0:00:20.1]} 30... Qg1+ {[%clk 0:00:45.6]} 31. Kh3
{[%clk 0:00:20.1]} 31... Qxg3# {[%clk 0:00:46.5]} 0-1

[Event "*** Titled Tuesday Blitz"]
[Site "Chess.com"]
[Date "2020.12.01"]
[Round "3"]
[White "Eloist"]
[Black "Doraemon7"]
[Result "0-1"]
[WhiteElo "2306"]
[BlackElo "2528"]
[TimeControl "180+1"]
[EndTime "10:27:12 PST"]
[Termination "Doraemon7 won by resignation"]

1. e4 {[%clk 0:03:00.9]} 1... c6 {[%clk 0:02:58.9]} 2. Nf3 {[%clk 0:02:59.5]}
2... d5 {[%clk 0:02:59.3]} 3. Nc3 {[%clk 0:02:58.9]} 3... Bg4 {[%clk 0:02:58.4]}
4. d4 {[%clk 0:02:58.3]} 4... dxe4 {[%clk 0:02:51.7]} 5. Nxe4 {[%clk 0:02:57.9]}
5... Nf6 {[%clk 0:02:52.3]} 6. Nxf6+ {[%clk 0:02:34.3]} 6... exf6 {[%clk
0:02:53.2]} 7. c3 {[%clk 0:02:26.2]} 7... Bd6 {[%clk 0:02:50.7]} 8. h3 {[%clk
0:02:20.6]} 8... Bh5 {[%clk 0:02:48.1]} 9. Qe2+ {[%clk 0:01:49.4]} 9... Be7
{[%clk 0:02:40.8]} 10. g4 {[%clk 0:01:46.3]} 10... Bg6 {[%clk 0:02:40.4]} 11.
Nh4 {[%clk 0:01:44.9]} 11... Na6 {[%clk 0:02:28.8]} 12. f4 {[%clk 0:01:29]}
12... f5 {[%clk 0:02:15.4]} 13. Nxf5 {[%clk 0:00:48]} 13... Bxf5 {[%clk
0:02:11.6]} 14. gxf5 {[%clk 0:00:48.9]} 14... O-O {[%clk 0:01:57.4]} 15. Be3
{[%clk 0:00:37]} 15... Bh4+ {[%clk 0:01:55]} 16. Kd2 {[%clk 0:00:34.8]} 16...
Re8 {[%clk 0:01:48.5]} 17. Qg4 {[%clk 0:00:27.8]} 17... Qe7 {[%clk 0:01:30.6]}
18. Qf3 {[%clk 0:00:20.2]} 18... Nc7 {[%clk 0:01:24]} 19. Bc4 {[%clk 0:00:19]}
19... b5 {[%clk 0:01:20.5]} 20. Bb3 {[%clk 0:00:18.8]} 20... c5 {[%clk
0:01:14.7]} 21. Rag1 {[%clk 0:00:16]} 21... Rad8 {[%clk 0:01:13]} 22. Rg4 {[%clk
0:00:12.6]} 22... Bf6 {[%clk 0:01:11.5]} 23. Re1 {[%clk 0:00:10.4]} 23... cxd4
{[%clk 0:01:05.1]} 24. cxd4 {[%clk 0:00:10.1]} 24... Bxd4 {[%clk 0:00:59.2]} 25.
Bxd4 {[%clk 0:00:06.1]} 25... Rxd4+ {[%clk 0:00:47.4]} 0-1

[Event "*** Titled Tuesday Blitz"]
[Site "Chess.com"]
[Date "2020.12.01"]
[Round "3"]
[White "daro94"]
[Black "csati17"]
[Result "1-0"]
[WhiteElo "2847"]
[BlackElo "2592"]
[TimeControl "180+1"]
[EndTime "10:27:16 PST"]
[Termination "daro94 won by resignation"]

1. e4 {[%clk 0:03:00.9]} 1... e6 {[%clk 0:02:52.6]} 2. d4 {[%clk 0:02:59.1]}
2... d5 {[%clk 0:02:53.1]} 3. Nc3 {[%clk 0:03:00]} 3... Bb4 {[%clk 0:02:52.4]}
4. e5 {[%clk 0:02:57.5]} 4... Ne7 {[%clk 0:02:52.6]} 5. a3 {[%clk 0:02:57.5]}
5... Bxc3+ {[%clk 0:02:53]} 6. bxc3 {[%clk 0:02:58.4]} 6... b6 {[%clk
0:02:53.8]} 7. Qg4 {[%clk 0:02:57.7]} 7... Ng6 {[%clk 0:02:53.7]} 8. h4 {[%clk
0:02:57.8]} 8... h5 {[%clk 0:02:53.7]} 9. Qg3 {[%clk 0:02:57.8]} 9... Ba6 {[%clk
0:02:53.5]} 10. Bd3 {[%clk 0:02:42.3]} 10... Bxd3 {[%clk 0:02:51.7]} 11. cxd3
{[%clk 0:02:43.2]} 11... c5 {[%clk 0:02:51.5]} 12. Ne2 {[%clk 0:02:37.6]} 12...
Nc6 {[%clk 0:02:45.7]} 13. Be3 {[%clk 0:02:33.2]} 13... Qd7 {[%clk 0:02:34.5]}
14. O-O {[%clk 0:02:22.1]} 14... Nce7 {[%clk 0:02:29.2]} 15. dxc5 {[%clk
0:02:19.1]} 15... Nf5 {[%clk 0:02:29.2]} 16. Qh3 {[%clk 0:02:19.6]} 16... bxc5
{[%clk 0:02:23.6]} 17. Bxc5 {[%clk 0:02:20.5]} 17... Nxe5 {[%clk 0:02:21.8]} 18.
Nd4 {[%clk 0:02:16]} 18... Nxd4 {[%clk 0:02:15.4]} 19. cxd4 {[%clk 0:02:15.7]}
19... Ng6 {[%clk 0:02:16.1]} 20. Rae1 {[%clk 0:02:09.1]} 20... Ne7 {[%clk
0:01:49.8]} 21. Re5 {[%clk 0:02:09.1]} 21... Nc6 {[%clk 0:01:46.6]} 22. Re3
{[%clk 0:01:57.9]} 22... O-O-O {[%clk 0:01:40.6]} 23. Rb1 {[%clk 0:01:54.2]}
23... Qc7 {[%clk 0:01:33.2]} 24. Qf3 {[%clk 0:01:43.8]} 24... Rd7 {[%clk
0:01:24.4]} 25. Re2 {[%clk 0:01:42.9]} 25... Qa5 {[%clk 0:01:15.2]} 26. Reb2
{[%clk 0:01:41.2]} 26... Re8 {[%clk 0:01:03.6]} 27. Qg3 {[%clk 0:01:41]} 27...
Qc7 {[%clk 0:00:59.6]} 28. Qxg7 {[%clk 0:01:38.1]} 28... Qf4 {[%clk 0:00:35.5]}
29. g3 {[%clk 0:01:17.2]} 29... Qf5 {[%clk 0:00:31.3]} 30. Qh6 {[%clk
0:01:11.1]} 30... Rg8 {[%clk 0:00:26.2]} 31. Qc1 {[%clk 0:01:01.8]} 31... Qxd3
{[%clk 0:00:18]} 32. Rb8+ {[%clk 0:00:48.5]} 32... Nxb8 {[%clk 0:00:16.4]} 33.
Bd6+ {[%clk 0:00:49]} 33... Qc4 {[%clk 0:00:14.2]} 1-0

[Event "*** Titled Tuesday Blitz"]
[Site "Chess.com"]
[Date "2020.12.01"]
[Round "3"]
[White "MikeSailer"]
[Black "vladgoncharov"]
[Result "1-0"]
[WhiteElo "2161"]
[BlackElo "2458"]
[TimeControl "180+1"]
[EndTime "10:27:16 PST"]
[Termination "MikeSailer won by checkmate"]

1. d4 {[%clk 0:03:00.3]} 1... f6 {[%clk 0:02:56.7]} 2. Nf3 {[%clk 0:02:58.5]}
2... d5 {[%clk 0:02:54.4]} 3. Bf4 {[%clk 0:02:52.1]} 3... c6 {[%clk 0:02:52.2]}
4. e3 {[%clk 0:02:51.4]} 4... e6 {[%clk 0:02:50.7]} 5. c4 {[%clk 0:02:44.7]}
5... Bb4+ {[%clk 0:02:46.1]} 6. Nc3 {[%clk 0:02:44.5]} 6... Ne7 {[%clk
0:02:45.7]} 7. Qb3 {[%clk 0:02:44]} 7... Qa5 {[%clk 0:02:44.2]} 8. Be2 {[%clk
0:02:39]} 8... O-O {[%clk 0:02:40.9]} 9. O-O {[%clk 0:02:39.2]} 9... Ng6 {[%clk
0:02:40.2]} 10. Bg3 {[%clk 0:02:39.2]} 10... Nd7 {[%clk 0:02:34.6]} 11. a3
{[%clk 0:02:37.5]} 11... Bxc3 {[%clk 0:02:34.1]} 12. bxc3 {[%clk 0:02:37.9]}
12... Kh8 {[%clk 0:02:33]} 13. Bd6 {[%clk 0:02:28.5]} 13... Re8 {[%clk
0:02:32.2]} 14. c5 {[%clk 0:02:24.3]} 14... e5 {[%clk 0:02:28.1]} 15. Rfe1
{[%clk 0:02:18.6]} 15... Qd8 {[%clk 0:02:13.4]} 16. c4 {[%clk 0:02:17.9]} 16...
Nb6 {[%clk 0:02:01.7]} 17. dxe5 {[%clk 0:02:05.4]} 17... dxc4 {[%clk 0:01:51.7]}
18. Bxc4 {[%clk 0:01:59]} 18... Nxc4 {[%clk 0:01:50.3]} 19. Qxc4 {[%clk
0:01:55.9]} 19... fxe5 {[%clk 0:01:50.4]} 20. Rad1 {[%clk 0:01:46.3]} 20... Qf6
{[%clk 0:01:50.1]} 21. Rd2 {[%clk 0:01:30.7]} 21... Be6 {[%clk 0:01:47.6]} 22.
Qb4 {[%clk 0:01:31.3]} 22... Bd5 {[%clk 0:01:38.8]} 23. e4 {[%clk 0:01:19.4]}
23... Bg8 {[%clk 0:01:36.6]} 24. Qxb7 {[%clk 0:01:16.6]} 24... Nf4 {[%clk
0:01:36.3]} 25. Bxe5 {[%clk 0:00:57.9]} 25... Rxe5 {[%clk 0:01:30]} 26. Qxa8
{[%clk 0:00:53.2]} 26... Nh3+ {[%clk 0:01:09.5]} 27. Kh1 {[%clk 0:00:43.5]}
27... h5 {[%clk 0:01:03.2]} 28. Nxe5 {[%clk 0:00:39.2]} 28... Nxf2+ {[%clk
0:01:03]} 29. Kg1 {[%clk 0:00:29.3]} 29... Nh3+ {[%clk 0:01:02.5]} 30. gxh3
{[%clk 0:00:26.6]} 30... Qg5+ {[%clk 0:01:02.2]} 31. Rg2 {[%clk 0:00:25.4]}
31... Qxe5 {[%clk 0:01:03.1]} 32. Qxc6 {[%clk 0:00:19.7]} 32... Be6 {[%clk
0:01:01.5]} 33. Qd6 {[%clk 0:00:14.2]} 33... Kh7 {[%clk 0:01:02.4]} 34. Qxe5
{[%clk 0:00:14.2]} 34... Kh8 {[%clk 0:01:03.3]} 35. Qxg7# {[%clk 0:00:14.3]} 1-0

[Event "*** Titled Tuesday Blitz"]
[Site "Chess.com"]
[Date "2020.12.01"]
[Round "3"]
[White "theturtlemoves"]
[Black "TheCairnTerrier"]
[Result "1-0"]
[WhiteElo "2391"]
[BlackElo "2163"]
[TimeControl "180+1"]
[EndTime "10:27:16 PST"]
[Termination "theturtlemoves won by checkmate"]

1. e4 {[%clk 0:03:00.9]} 1... c5 {[%clk 0:03:00]} 2. Nf3 {[%clk 0:03:00.6]} 2...
e6 {[%clk 0:03:00.2]} 3. d4 {[%clk 0:03:00.5]} 3... cxd4 {[%clk 0:03:01.1]} 4.
Nxd4 {[%clk 0:03:01.4]} 4... Nf6 {[%clk 0:03:01.1]} 5. Nc3 {[%clk 0:03:00.4]}
5... d6 {[%clk 0:03:01.5]} 6. Be3 {[%clk 0:02:54.9]} 6... Be7 {[%clk 0:03:01.7]}
7. g4 {[%clk 0:02:51.7]} 7... d5 {[%clk 0:02:35.6]} 8. exd5 {[%clk 0:02:26.5]}
8... Nxd5 {[%clk 0:02:35.3]} 9. Bb5+ {[%clk 0:02:22.7]} 9... Bd7 {[%clk
0:02:22.1]} 10. Nxd5 {[%clk 0:02:21.1]} 10... exd5 {[%clk 0:02:08.2]} 11. Bxd7+
{[%clk 0:02:14.1]} 11... Qxd7 {[%clk 0:02:05.2]} 12. Nf5 {[%clk 0:02:11.8]}
12... Bf6 {[%clk 0:02:03.3]} 13. c3 {[%clk 0:01:33.1]} 13... O-O {[%clk
0:01:58.7]} 14. Qd2 {[%clk 0:01:22.9]} 14... Nc6 {[%clk 0:01:23.7]} 15. O-O-O
{[%clk 0:01:21.9]} 15... Ne5 {[%clk 0:01:11.1]} 16. Bd4 {[%clk 0:01:00.8]} 16...
Nxg4 {[%clk 0:00:39.9]} 17. Qf4 {[%clk 0:01:00.2]} 17... Bxd4 {[%clk 0:00:34.8]}
18. Qxg4 {[%clk 0:00:58.3]} 18... Kh8 {[%clk 0:00:25.3]} 19. Rxd4 {[%clk
0:00:55.6]} 19... g6 {[%clk 0:00:24.8]} 20. Ne3 {[%clk 0:00:51.5]} 20... f5
{[%clk 0:00:24.1]} 21. Qf4 {[%clk 0:00:48.5]} 21... Rae8 {[%clk 0:00:23]} 22.
Rxd5 {[%clk 0:00:46.5]} 22... Qc6 {[%clk 0:00:21.9]} 23. Qd4+ {[%clk 0:00:46]}
23... Kg8 {[%clk 0:00:21.2]} 24. Rd1 {[%clk 0:00:37.9]} 24... f4 {[%clk
0:00:21.3]} 25. Ng4 {[%clk 0:00:34]} 25... Re2 {[%clk 0:00:21]} 26. Nh6# {[%clk
0:00:33.4]} 1-0

[Event "*** Titled Tuesday Blitz"]
[Site "Chess.com"]
[Date "2020.12.01"]
[Round "3"]
[White "PelinGorki"]
[Black "Mr_Heisenberg13"]
[Result "1-0"]
[WhiteElo "2408"]
[BlackElo "2612"]
[TimeControl "180+1"]
[EndTime "10:27:17 PST"]
[Termination "PelinGorki won by resignation"]

1. e4 {[%clk 0:03:00.9]} 1... e6 {[%clk 0:02:59.6]} 2. d4 {[%clk 0:03:00]} 2...
d5 {[%clk 0:02:59.5]} 3. Nc3 {[%clk 0:03:00.4]} 3... Bb4 {[%clk 0:02:59.1]} 4.
Ne2 {[%clk 0:02:59.2]} 4... dxe4 {[%clk 0:02:57.6]} 5. a3 {[%clk 0:02:58.6]}
5... Be7 {[%clk 0:02:55.1]} 6. Nxe4 {[%clk 0:02:55.4]} 6... Nd7 {[%clk 0:02:56]}
7. g3 {[%clk 0:02:29.7]} 7... Ngf6 {[%clk 0:02:53.9]} 8. Bg2 {[%clk 0:02:29.2]}
8... O-O {[%clk 0:02:53]} 9. O-O {[%clk 0:02:28]} 9... Nxe4 {[%clk 0:02:52.9]}
10. Bxe4 {[%clk 0:02:28.9]} 10... c5 {[%clk 0:02:53.1]} 11. Be3 {[%clk
0:02:25.9]} 11... Qc7 {[%clk 0:02:51.5]} 12. c3 {[%clk 0:02:21.2]} 12... Rd8
{[%clk 0:02:45.6]} 13. Nf4 {[%clk 0:01:49.9]} 13... cxd4 {[%clk 0:02:43.4]} 14.
cxd4 {[%clk 0:01:49.8]} 14... Nf6 {[%clk 0:02:42]} 15. Bd3 {[%clk 0:01:45.1]}
15... Bd7 {[%clk 0:02:40.5]} 16. Rc1 {[%clk 0:01:39.3]} 16... Qb8 {[%clk
0:02:35.1]} 17. Nh5 {[%clk 0:01:30.1]} 17... Nd5 {[%clk 0:02:30.7]} 18. Bd2
{[%clk 0:00:45.9]} 18... Bc6 {[%clk 0:02:25]} 19. Qg4 {[%clk 0:00:27.5]} 19...
g6 {[%clk 0:02:22.7]} 20. Nf4 {[%clk 0:00:26.8]} 20... Nxf4 {[%clk 0:02:21.7]}
21. Bxf4 {[%clk 0:00:25]} 21... Bd6 {[%clk 0:02:21.6]} 22. Bg5 {[%clk
0:00:23.3]} 22... Re8 {[%clk 0:02:21.4]} 23. Bf6 {[%clk 0:00:23.2]} 23... Bf8
{[%clk 0:02:17.7]} 24. b4 {[%clk 0:00:22.4]} 24... Bg7 {[%clk 0:02:12.4]} 25.
Bxg7 {[%clk 0:00:20.6]} 25... Kxg7 {[%clk 0:02:13.3]} 26. Qg5 {[%clk 0:00:19.9]}
26... Qd6 {[%clk 0:02:11]} 27. Qe5+ {[%clk 0:00:18.9]} 27... Qxe5 {[%clk
0:02:10.8]} 28. dxe5 {[%clk 0:00:19.8]} 28... Red8 {[%clk 0:02:09.9]} 29. Bc4
{[%clk 0:00:11.5]} 29... a6 {[%clk 0:02:08.2]} 30. Rfd1 {[%clk 0:00:11.2]} 30...
Bf3 {[%clk 0:02:06.2]} 31. Rd3 {[%clk 0:00:09.9]} 31... Rxd3 {[%clk 0:02:05.7]}
32. Bxd3 {[%clk 0:00:10.8]} 32... Rd8 {[%clk 0:02:05.7]} 33. Bf1 {[%clk
0:00:10.8]} 33... g5 {[%clk 0:01:57.6]} 34. h3 {[%clk 0:00:10.4]} 34... Rd3
{[%clk 0:01:53.9]} 35. Bxd3 {[%clk 0:00:10]} 35... h5 {[%clk 0:01:48.3]} 36. Rc7
{[%clk 0:00:10.2]} 36... Kf8 {[%clk 0:01:46.1]} 37. Kf1 {[%clk 0:00:09.9]} 37...
g4 {[%clk 0:01:45.1]} 38. hxg4 {[%clk 0:00:09.9]} 38... hxg4 {[%clk 0:01:46]}
39. Be2 {[%clk 0:00:10.3]} 39... Bd5 {[%clk 0:01:45.4]} 40. Bxg4 {[%clk
0:00:10.4]} 40... Kg7 {[%clk 0:01:45.8]} 41. f4 {[%clk 0:00:10.7]} 41... Kg6
{[%clk 0:01:45.4]} 42. Kf2 {[%clk 0:00:11.6]} 42... Be4 {[%clk 0:01:44.4]} 43.
Bf3 {[%clk 0:00:12.5]} 43... Bc2 {[%clk 0:01:43.9]} 44. Rxb7 {[%clk 0:00:12.2]}
44... Ba4 {[%clk 0:01:43]} 45. Ke3 {[%clk 0:00:12.3]} 45... Bb5 {[%clk
0:01:42.7]} 46. Be4+ {[%clk 0:00:12.6]} 46... Kg7 {[%clk 0:01:42.4]} 47. f5
{[%clk 0:00:13.1]} 47... exf5 {[%clk 0:01:42.2]} 48. Bxf5 {[%clk 0:00:14]} 48...
Kf8 {[%clk 0:01:42.6]} 49. Kf4 {[%clk 0:00:14]} 49... Bc4 {[%clk 0:01:42.2]} 50.
Kg5 {[%clk 0:00:14.2]} 50... Ke8 {[%clk 0:01:41.3]} 51. Kf6 {[%clk 0:00:14.2]}
51... Kd8 {[%clk 0:01:41.6]} 52. Rb8+ {[%clk 0:00:13.3]} 52... Kc7 {[%clk
0:01:41.5]} 53. Rc8+ {[%clk 0:00:14]} 1-0

[Event "*** Titled Tuesday Blitz"]
[Site "Chess.com"]
[Date "2020.12.01"]
[Round "3"]
[White "HanSchut"]
[Black "adriangschnitzer"]
[Result "0-1"]
[WhiteElo "2211"]
[BlackElo "2493"]
[TimeControl "180+1"]
[EndTime "10:27:17 PST"]
[Termination "adriangschnitzer won by resignation"]

1. e4 {[%clk 0:03:00.9]} 1... c6 {[%clk 0:02:59.6]} 2. d4 {[%clk 0:03:00.6]}
2... d5 {[%clk 0:03:00.5]} 3. e5 {[%clk 0:03:00.7]} 3... c5 {[%clk 0:03:00.5]}
4. Nf3 {[%clk 0:02:54.4]} 4... Bg4 {[%clk 0:02:59.1]} 5. dxc5 {[%clk 0:02:45.4]}
5... Nc6 {[%clk 0:02:58.6]} 6. a3 {[%clk 0:02:45.5]} 6... e6 {[%clk 0:02:49.4]}
7. b4 {[%clk 0:02:44.6]} 7... a5 {[%clk 0:02:40.4]} 8. Bb2 {[%clk 0:02:06.4]}
8... axb4 {[%clk 0:02:37.6]} 9. axb4 {[%clk 0:02:07.3]} 9... Rxa1 {[%clk
0:02:37]} 10. Bxa1 {[%clk 0:02:08.2]} 10... Nxb4 {[%clk 0:02:37.1]} 11. c4
{[%clk 0:02:08.4]} 11... Bxc5 {[%clk 0:02:34.3]} 12. cxd5 {[%clk 0:01:52.7]}
12... Nxd5 {[%clk 0:02:33.8]} 13. Bb5+ {[%clk 0:01:44.2]} 13... Kf8 {[%clk
0:02:33.5]} 14. O-O {[%clk 0:01:30]} 14... Qa5 {[%clk 0:02:30]} 15. Qa4 {[%clk
0:01:18.4]} 15... Qxa4 {[%clk 0:02:27.4]} 16. Bxa4 {[%clk 0:01:19.3]} 16... Bxf3
{[%clk 0:02:23.1]} 17. gxf3 {[%clk 0:01:20.2]} 17... Ke7 {[%clk 0:02:18.7]} 18.
Rc1 {[%clk 0:01:10]} 18... b6 {[%clk 0:02:16]} 19. Nd2 {[%clk 0:01:00.3]} 19...
Nf4 {[%clk 0:02:07.2]} 20. Kf1 {[%clk 0:00:56.2]} 20... Nh6 {[%clk 0:01:58.2]}
21. Ne4 {[%clk 0:00:52.6]} 21... Ra8 {[%clk 0:01:44.5]} 22. Nxc5 {[%clk
0:00:43]} 22... bxc5 {[%clk 0:01:42.8]} 23. Bb5 {[%clk 0:00:35.6]} 23... Nf5
{[%clk 0:01:30]} 24. Rd1 {[%clk 0:00:28.6]} 24... Nd4 {[%clk 0:01:24.8]} 25. Bc3
{[%clk 0:00:15.2]} 25... Nxb5 {[%clk 0:00:35.7]} 0-1

[Event "*** Titled Tuesday Blitz"]
[Site "Chess.com"]
[Date "2020.12.01"]
[Round "3"]
[White "albi1999"]
[Black "KetiGrant"]
[Result "1-0"]
[WhiteElo "2580"]
[BlackElo "2367"]
[TimeControl "180+1"]
[EndTime "10:27:18 PST"]
[Termination "albi1999 won by resignation"]

1. d4 {[%clk 0:03:00.9]} 1... Nf6 {[%clk 0:02:59]} 2. c4 {[%clk 0:02:59.9]} 2...
g6 {[%clk 0:02:59.5]} 3. g3 {[%clk 0:02:58.7]} 3... Bg7 {[%clk 0:02:59]} 4. Bg2
{[%clk 0:02:58.4]} 4... O-O {[%clk 0:02:59.4]} 5. Nc3 {[%clk 0:02:58]} 5... d6
{[%clk 0:02:59.7]} 6. Nf3 {[%clk 0:02:58.3]} 6... Nc6 {[%clk 0:02:59.9]} 7. O-O
{[%clk 0:02:58.5]} 7... e5 {[%clk 0:02:59.9]} 8. d5 {[%clk 0:02:53.5]} 8... Ne7
{[%clk 0:02:59.7]} 9. e4 {[%clk 0:02:53.1]} 9... Ne8 {[%clk 0:02:52.9]} 10. Ne1
{[%clk 0:02:52.7]} 10... f5 {[%clk 0:02:51.2]} 11. Nd3 {[%clk 0:02:52.3]} 11...
Nf6 {[%clk 0:02:49.6]} 12. f4 {[%clk 0:02:50.8]} 12... exf4 {[%clk 0:02:44.6]}
13. Nxf4 {[%clk 0:02:45.5]} 13... c6 {[%clk 0:02:35.5]} 14. c5 {[%clk
0:02:34.5]} 14... fxe4 {[%clk 0:02:19.4]} 15. cxd6 {[%clk 0:02:14]} 15... Qxd6
{[%clk 0:02:15.7]} 16. Nxe4 {[%clk 0:01:48]} 16... Nxe4 {[%clk 0:02:14.7]} 17.
Bxe4 {[%clk 0:01:48.9]} 17... Bf5 {[%clk 0:02:14.5]} 18. Bxf5 {[%clk 0:01:44.1]}
18... Rxf5 {[%clk 0:02:13.9]} 19. dxc6 {[%clk 0:01:44.4]} 19... Qc5+ {[%clk
0:02:13.6]} 20. Kg2 {[%clk 0:01:27]} 20... Qxc6+ {[%clk 0:02:13.4]} 21. Qf3
{[%clk 0:01:25.6]} 21... Rc8 {[%clk 0:01:53.9]} 22. Be3 {[%clk 0:01:08.4]} 22...
Bxb2 {[%clk 0:01:46.9]} 23. Rab1 {[%clk 0:01:07.9]} 23... Rb5 {[%clk 0:01:39.7]}
24. Rf2 {[%clk 0:00:47.3]} 24... Bg7 {[%clk 0:01:28.5]} 25. Rxb5 {[%clk
0:00:37.7]} 25... Qxb5 {[%clk 0:01:27.3]} 26. Ne6 {[%clk 0:00:37]} 26... Nf5
{[%clk 0:01:22.9]} 27. Nxg7 {[%clk 0:00:32.8]} 27... Kxg7 {[%clk 0:01:21.9]} 28.
Bxa7 {[%clk 0:00:29.7]} 28... Qa4 {[%clk 0:00:57]} 29. Qxb7+ {[%clk 0:00:25]}
1-0